Cogmind - Beta 15 @@@ ROGUE MODE // 2025.10.20 @ 21:02:37 Player: Lazz Result: Self-destructed Performance ------------- Evolutions (1) 500 Regions Visited (2) 400 Robots Destroyed (22) 110 Value Destroyed (595) 595 Prototype IDs (1) 20 Alien Tech Used (0) 0 Bonus (0) 0 TOTAL SCORE: 1625 Bonus ------- None Cogmind --------- Core Integrity 156/400 Matter 204/300 Energy 280/280 System Corruption 1% Temperature Warm (104) Movement Walking (130) Location -9/Materials Parts ------- > --- POWER (1) -------- Cooled Ion Engine > --- PROPULSION (3) --- Titanium Leg Titanium Leg Titanium Leg > --- UTILITY (3) ------ Medium Storage Unit Signal Interpreter Melee Analysis Suite > --- WEAPON (2) ------- (None) > --- INVENTORY (10) --- Light Ion Engine Aluminum Leg Aluminum Leg Improved Flight Unit Targeting Computer Melee Analysis Suite Melee Analysis Suite Melee Analysis Suite Improved Power Shielding Improved Power Shielding Peak State ------------ > --- POWER ------------ Cooled Ion Engine > --- PROPULSION ------- Titanium Leg Titanium Leg Titanium Leg > --- UTILITY ---------- Medium Storage Unit Signal Interpreter Melee Analysis Suite > --- WEAPON ----------- Plasma Cutter > --- INVENTORY -------- Light Ion Engine Aluminum Leg Aluminum Leg Improved Flight Unit Targeting Computer Melee Analysis Suite Melee Analysis Suite Melee Analysis Suite Improved Power Shielding Improved Power Shielding [Rating: 21] Favorites ----------- Power Light Ion Engine Engine Light Ion Engine Propulsion Light Treads Treads Light Treads Leg Titanium Leg Utility Signal Interpreter Storage Small Storage Unit Processor Signal Interpreter Weapon Light Assault Rifle Energy Gun Small Laser Ballistic Gun Light Assault Rifle Launcher Grenade Launcher Special Weapon Plasma Cutter Special Melee Weapon Datajack Build | -11 -10 -9 ------- Run | Yrd Mat Mat Slots Evolved 2 | . . 2 Power . | . . . Propulsion 1 | . . 1 Utility 1 | . . 1 Weapon . | . . . Parts Attached 31 | 5 5 21 Power 4 | 1 . 3 Engine 4 | 1 . 3 Core . | . . . Reactor . | . . . Propulsion 13 | 2 . 11 Treads 2 | 2 . . Leg 11 | . . 11 Wheel . | . . . Hover . | . . . Flight . | . . . Utility 7 | 1 4 2 Device . | . . . Storage 3 | 1 1 1 Processor 4 | . 3 1 Hackware . | . . . Protection . | . . . Artifact . | . . . Weapon 7 | 1 1 5 Energy Gun 1 | . . 1 Energy Cannon . | . . . Ballistic Gun 3 | 1 . 2 Ballistic Cannon . | . . . Launcher 1 | . 1 . Special Weapon 1 | . . 1 Impact Weapon . | . . . Slashing Weapon . | . . . Piercing Weapon . | . . . Special Melee Weapon 1 | . . 1 Unidentified Prototypes 1 | . . 1 Parts Lost 11 | . 2 9 Power 2 | . 1 1 Propulsion 5 | . . 5 Utility . | . . . Weapon 4 | . 1 3 Highest Loss Streak 3 | . 2 3 To Critical Strikes . | . . . Average Backups 6 | 3 6 7 Power . | . 1 . Propulsion 2 | 1 2 2 Utility 2 | . 1 4 Weapon 1 | 1 2 . Tool/Special . | . . . Unused Backups 8 | . . 8 Power . | . . . Propulsion 2 | . . 2 Utility 6 | . . 6 Weapon . | . . . Tool/Special . | . . . Average Slot Usage (%) 83 | . 92 78 Engine 10 | . 13 8 Treads 11 | . 28 1 Leg 16 | . . 26 Storage 12 | . 14 11 Processor 14 | . 11 16 Energy Gun 1 | . . 2 Ballistic Gun 6 | . 14 1 Launcher 3 | . 9 . Special Weapon 3 | . . 6 Special Melee Weapon 1 | . . 2 Peak Build Rating 21 | 5 8 21 Average Rating 10 | 4 6 13 On Entrance 3 | . 5 5 Naked Turns . | . . . Heaviest Build 19 | 9 12 19 Greatest Support 51 | 40 40 51 Greatest Overweight (x) 1 | . . 1 Average Overweight (x) . | . . . Largest Inventory Capacity 10 | 8 10 10 Average Capacity 8 | 7 8 9 Most Carried 10 | 5 8 10 Average Carried 6 | 3 6 7 Final Capacity 10 | 8 8 10 Final Carried 10 | 5 8 10 Class Distribution -------------------- 93% | Mutant 6% | Scavenger-Mutant Dominant Class ---------------- Mutant | -10/Materials Mutant | -9/Materials Resources | -11 -10 -9 ----------- Run | Yrd Mat Mat Matter Collected 540 | 213 47 280 Remotely . | . . . Salvage Created 540 | . 180 360 Parts 41 | . 18 23 Haulers Intercepted . | . . . Recyclers Shooed 1 | . 1 . Parts Field Recycled . | . . . Retrieved Matter . | . . . Parts Self-Destructed . | . . . Prevented . | . . . Kills | -11 -10 -9 ------- Run | Yrd Mat Mat Combat Hostiles Destroyed 19 | . 8 11 Guns 10 | . 2 8 Cannons 3 | . . 3 AOE 6 | . 6 . Classes Destroyed 5 | . 4 1 Worker 1 | . 1 . Watcher 2 | . 2 . Swarmer 7 | . 3 4 Grunt 11 | . 5 6 Sentry 1 | . . 1 Best Kill Streak 4 | . 3 4 Combat Bots Only 4 | . 3 4 Max Kills in Single Turn 3 | . 3 1 Gunslinging . | . . . Exploded 2 | . 2 . Melee . | . . . Uniques/NPCs Destroyed . | . . . Combat | -11 -10 -9 -------- Run | Yrd Mat Mat Hostile Shots Fired 205 | . 40 165 Missed 61 | . 10 51 Hits 144 | . 30 114 Projectile 144 | . 30 114 Damage Taken 1711 | . 407 1304 Core 289 | . 45 244 Absorbed by Shields . | . . . Core Remaining (%) 91 | 100 82 . Volleys Fired 107 | . 26 81 Largest 2 | . 2 1 Hottest 50 | . 50 40 Shots Fired 117 | . 38 79 Gun 82 | . 26 56 Cannon . | . . . Launcher 12 | . 12 . Special 23 | . . 23 Kinetic 56 | . 26 30 Thermal 49 | . . 49 Explosive 12 | . 12 . Electromagnetic . | . . . Robot Hit Streak 12 | . 9 12 Robot Miss Streak 4 | . 4 3 Penetration Max . | . . . Secondary Targets . | . . . Shots Hit Robots 66 | . 17 49 Core Hits 44 | . 20 24 Critical Kills . | . . . Critical Parts Destroyed 2 | . . 2 Critical Strikes 2 | . . 2 Destroy 2 | . . 2 Melee Attacks 4 | . . 4 Impact . | . . . Slashing . | . . . Piercing . | . . . Sneak Attacks 1 | . . 1 Combat Hostiles . | . . . Follow-up Attacks . | . . . Damage Inflicted 1146 | . 616 530 Guns 432 | . 100 332 Cannons . | . . . Explosions 509 | . 509 . Melee . | . . . Ramming 35 | . 7 28 Kinetic 304 | . 100 204 Thermal 298 | . . 298 Explosive 509 | . 509 . Electromagnetic . | . . . Impact . | . . . Slashing . | . . . Piercing . | . . . Highest Corruption 1 | . . 1 Average Corruption 1 | . . 1 Corruption Purged . | . . . Corruption Blocked . | . . . Effects 6 | . . 6 Message Errors 1 | . . 1 Matter Fused 1 | . . 1 Heat Flow Errors 1 | . . 1 Parts Rejected 1 | . . 1 Weapon Failures 2 | . . 2 Overload Shots . | . . . Overflow Damage . | . . . Projectiles . | . . . Explosions . | . . . Melee . | . . . Knockbacks . | . . . Impact . | . . . Kinetic . | . . . Secondary . | . . . Self-Inflicted Damage 89 | . 89 . Shots 4 | . 4 . Rammed 1 | . 1 . Targets Rammed 11 | . 1 10 Kicked 10 | . . 10 Crushed . | . . . Highest Temperature 173 | . 16 173 Average Temperature 19 | . 9 34 Received Heat Transfer 699 | . 156 543 Siege Activations . | . . . Martial Activations . | . . . Shielding Activations . | . . . Robots Disrupted . | . . . Combat Hostiles . | . . . Robots Corrupted . | . . . Combat Hostiles . | . . . Parts Fried . | . . . Impact Corruptions . | . . . Robots Melted . | . . . Combat Hostiles . | . . . Parts Melted . | . . . Heat Transferred 892 | . . 892 Parts Sabotaged . | . . . Parts Stolen . | . . . Parts Stripped . | . . . Power Chain Reactions . | . . . Alert | -11 -10 -9 ------- Run | Yrd Mat Mat Maximum Alert Level 1 | . 1 . Low Security (%) 99 | 100 97 100 Level 1 . | . 2 . Level 2 . | . . . Level 3 . | . . . Level 4 . | . . . Level 5 . | . . . High Security . | . . . Max Security . | . . . Peak Influence 205 | . 205 143 Initial 83 | . . 83 Average 54 | . 61 56 Influence Increases 683 | . 368 315 Destroy 0b10 Robot/C 380 | . 160 220 Destroy 0b10 Robot/NC 15 | . 15 . Destroy Leader 84 | . 34 50 Disable Machine 90 | . 75 15 Destroy Structure 84 | . 84 . Lose Combat Pursuer 30 | . . 30 Influence Decreases 676 | . 171 505 Entered New Map 114 | . . 114 Time Decay 462 | . 151 311 Lost Part 100 | . 20 80 Squads Dispatched 7 | . 5 2 Investigation 3 | . 2 1 Extermination . | . . . Reinforcement 4 | . 3 1 Assault . | . . . Garrison . | . . . Intercept . | . . . Searches Triggered . | . . . Construction Impeded . | . . . Haulers Reinforced . | . . . Active Scanning Responses . | . . . Cargo Convoy Interrupts . | . . . Stealth | -11 -10 -9 --------- Run | Yrd Mat Mat Distress Signals 2 | . 1 1 Communications Jammed . | . . . Distress Signals . | . . . Times Spotted 45 | . 17 28 Peak Tracking Total 8 | . 8 7 Tactical Retreats 2 | . . 2 Traps | -11 -10 -9 ------- Run | Yrd Mat Mat Traps Triggered 4 | . 2 2 Indirectly . | . . . Trap Hack Attempts . | . . . Triggered . | . . . Disarmed . | . . . Reprogrammed . | . . . Reused . | . . . Traps Extracted . | . . . Installed . | . . . Triggered . | . . . Machines | -11 -10 -9 ---------- Run | Yrd Mat Mat Machines Disabled 6 | . 5 1 Max in Single Turn 2 | . 2 1 Machines Repaired . | . . . Machines Dismantled 1 | . . 1 Machines Sabotaged . | . . . Overloaded Fab Kills . | . . . Hacking | -11 -10 -9 --------- Run | Yrd Mat Mat Machines Accessed 4 | . 3 1 Terminals 3 | . 2 1 Fabricators . | . . . Repair Stations . | . . . Recycling Units 1 | . 1 . Scanalyzers . | . . . Garrison Access . | . . . Total Hacks 8 | . 5 3 Successful 2 | . 2 . Failed 6 | . 3 3 Catastrophic 1 | . 1 . Database Lockouts . | . . . Manual . | . . . Terminals 7 | . 4 3 Fabricators . | . . . Repair Stations . | . . . Recycling Units 1 | . 1 . Scanalyzers . | . . . Garrison Access . | . . . Terminal Hacks 1 | . 1 . Locate Traps 1 | . 1 . Fabricator Hacks . | . . . Repair Station Hacks . | . . . Recycling Unit Hacks 1 | . 1 . Report Inventory 1 | . 1 . Scanalyzer . | . . . Garrison Access Hacks . | . . . Unauthorized Hacks . | . . . Terminals . | . . . Fabricators . | . . . Repair Stations . | . . . Recycling Units . | . . . Scanalyzers . | . . . Garrison Access . | . . . Data Cores Recovered . | . . . Used . | . . . Hacking Detections 3 | . 2 1 Full Trace Events 2 | . 1 1 Feedback Events 1 | . . 1 Corruption 1 | . . 1 Feedback Blocked . | . . . Robot Schematics Acquired . | . . . Robots Built . | . . . Authchips . | . . . Time . | . . . Total Robot Build Rating . | . . . Part Schematics Acquired . | . . . Parts Built . | . . . Authchips . | . . . Time . | . . . Total Part Build Rating . | . . . Parts Repaired . | . . . Time . | . . . Parts Recycled . | . . . Recycled Matter . | . . . Retrieved Matter . | . . . Retrieved Components . | . . . Parts Scanalyzed . | . . . Part Schematics Acquired . | . . . Parts Damaged . | . . . Bothacking | -11 -10 -9 ------------ Run | Yrd Mat Mat Used RIF Installer . | . . . Robots Hacked 2 | . . 2 Non-combat 1 | . . 1 Combat 1 | . . 1 Robot Hacks Applied 2 | . . 2 parse_system 1 | . . 1 no_distress 1 | . . 1 Relay Couplers Released . | . . . Fabnet Peak Effective % . | . . . Robots Rewired . | . . . Allies Hacked . | . . . Hacks Repelled . | . . . Allies | -11 -10 -9 -------- Run | Yrd Mat Mat Total Allies . | . . . Largest Group . | . . . Highest-Rated Group . | . . . Highest-Rated Ally . | . . . Total Orders . | . . . Ally Attacks . | . . . Total Damage . | . . . Kills . | . . . Allies Corrupted . | . . . Allies Melted . | . . . Intel | -11 -10 -9 ------- Run | Yrd Mat Mat Active Infowar (turns) 69 | . 69 . Optics 69 | . 69 . Robot Analysis Total . | . . . Derelict Logs Recovered . | . . . Drone Launches . | . . . Drone Recoveries . | . . . Exploration | -11 -10 -9 ------------- Run | Yrd Mat Mat Turns Passed 1297 | 85 442 770 Spaces Moved 625 | 52 230 343 Core 21 | 11 . 10 Treads 291 | 41 230 20 Legs 313 | . . 313 Wheels . | . . . Hover . | . . . Flight . | . . . Fastest Speed 50 | 50 160 100 Average Speed 139 | 136 160 126 Slowest Speed 160 | 160 160 160 Overloaded Moves . | . . . Propulsion Burnouts . | . . . Robots Hopped . | . . . Potential Cave-ins . | . . . Cave-ins Triggered . | . . . Exploration Rate (%) 30 | 3 55 34 Regions Visited 2 Branch Regions . Pre-discovered Areas . | . . . Known Exits Taken 1 | . 1 . Unknown Exits Taken 1 | 1 . . Scrap Searched . | . . . Spaces Dug . | . . . Terrain Destroyed 93 | . 93 . Melee . | . . . Projectile . | . . . AOE 93 | . 93 . Terrain Rammed . | . . . Walls Destroyed . | . . . Machines Disabled . | . . . Actions | -11 -10 -9 --------- Run | Yrd Mat Mat Total 901 | 66 269 566 Wait 70 | . . 70 Move 623 | 51 229 343 Hop . | . . . Pick Up 40 | 10 7 23 Fast Attach . | . . . Attach 24 | 5 2 17 Detach 1 | . . 1 Swap 11 | . 4 7 Drop 5 | . . 5 Fire 107 | . 26 81 Melee 4 | . . 4 Ram . | . . . Kick 10 | . . 10 Crush 1 | . 1 . Escape Stasis . | . . . Rewire . | . . . Trap . | . . . Miscellaneous 5 | . . 5 Route ------- -11/Scrapyard -10/Materials (discovered 2 exits: *Mat / *Min) -9/Materials History --------- Turn | Location | Event 2 | -11/Scrapyard | Met Revision 17 20 | -11/Scrapyard | Discovered new exit (range 15) 86 | -11/Scrapyard | Entered Materials 313 | -10/Materials | Discovered new exit (range 10) 317 | -10/Materials | Build established: Mutant 337 | -10/Materials | Identified exit to Materials 437 | -10/Materials | Discovered new exit (range 7) 445 | -10/Materials | Identified exit to Mines 528 | -10/Materials | Entered another Materials area 528 | -9/Materials | Evolved 2 slots: Propulsion x1, Utility x1 871 | -9/Materials | Lost 3 parts (2n1w) 1010 | -9/Materials | Core integrity fell below 50% 1298 | -9/Materials | Self-destructed Last Messages --------------- context help for more info. K-01 Serf collects debris. K-01 Serf cleans the Fusion Modulator. K-01 Serf collects debris. Kicked K-01 Serf out of the way. Dismantling Terminal with Plasma Cutter. Terminal unresponsive. Dismantling Terminal with Plasma Cutter. Terminal dismantled. System corrupted: Matter fused (-5). Kicked W-16 Scout. K-01 Serf cleans the Hadron Collector. Kicked K-01 Serf out of the way. K-01 Serf cleans the Hadron Collector. Kicked U-05 Engineer out of the way. W-16 Scout sends out distress signal. K-01 Serf cleans the Terminal. U-05 Engineer works on Matter Filter. Plasma Cutter destroyed. System corrupted: Heat flow error (+192). Map ----- +----------------------------------------------------+ | ?????????????????????????????????????????????????? | | ?????????????????????????????????????????????????? | | ?????????????????????????????????????????????????? | | ?????????????????????????????????????????????????? | | ?????????????????????????????????????????????????? | | ?????????????????????????????????????????????????? | | ?????????????????????????????????????????????????? | | ?????????????????????????????????????????????????? | | ?????????????????????????????????????????????????? | | ??????????????????????????????????????????????? ?? | | ??????????????????????????????????????????????? ?? | | ?????????????????????????????????????????????? ?? | | ????????????????????????????????????????????# #? | | ????????????????????????????????????????????# #? | | ?????????????????????????????????#######???## ## | | ???????????????###########+####### ##### # | | ?????????????? T" # | | ?????????????? " + | | ??????????????? ? | | ??????????????????????## #### ###?# ? | | ???????????????????????# ######+####???# #? | | ???????????????????????# Y + #???# #? | | ????????????????????#### g#### "" #???# ## | | ????????????????????+ #??# #???# | | ????????????????????#####/##### #???# ## | | ?????????????????????# a@ # #???# #? | | ?????????????????????# # #???# #? | | ?????????????????????# # ##### #? | | ?????????????????????# # / #? | | ?????????????????????# ############### #? | | ?????????????????????# #?????????????# #? | | ?????????????????????# #?????????????# #? | | ?????????????????????# #?????????????+ #? | | ?????????????????????# #?????????????# /? | | ?????????????????????##########?????????????# # | | ????????????????????????????????????????????# # | | ????????????????????????????????????????????# #? | | ????????????????????????????????????????????+ #? | | ????????????????????????????????????????????### #? | | ??????????????????????????????????????????????? #? | | ??????????????????????????????????????????????? #? | | ??????????????????????????????????????????????? #? | | ?????????????????????????????????????????????????? | | ?????????????????????????????????????????????????? | | ?????????????????????????????????????????????????? | | ?????????????????????????????????????????????????? | | ?????????????????????????????????????????????????? | | ?????????????????????????????????????????????????? | | ?????????????????????????????????????????????????? | | ?????????????????????????????????????????????????? | +----------------------------------------------------+ Best States ------------- Heat Dissipation 28 Energy Generation 14 Energy Capacity 280 Matter Stores 269 Matter Capacity 450 Sight Range 18 Terrain Scan Density 10 Evasion (%) 55 Targeting Accuracy 5 Melee Accuracy 5 Recoil Reduction 2 Item Schematics ----------------- None Robot Schematics ------------------ None Fabricated ------------ Nothing Repaired ---------- Nothing Alien Tech Used ----------------- None Achievements -------------- Let's See Who's Tougher Challenges ------------ None Game ------ Seed SeismicPowerRay Manual? 0 Play Time 00:24:02 Cumulative 10.2 hours Start 2025.10.20 @ 20:38:27 End 2025.10.20 @ 21:02:37 Sessions 1 Manual Loads 0 Difficulty Rogue Special Mode None Game No. 14 Rogue 14 Adventurer 0 Explorer 0 Win Type - Total 0 Types 0/0/0/0/0/0/0/0/0/0 Lore% 8 Gallery% 13 Achievement% 15 Wizard Run 0 Options --------- Layout 2 ASCII 0 Keyboard 0 Movement Mouse Keybinds 0 Fullscreen 1 Font 16/SmallcapsGlow Map View 25x24 Zoom Use 100% Tactical HUD 0 Map Filters NONE Filters NONE Steam SD RUN: 25e1e659-c7b3-4aae-b3d1-6238cc91981c